bitfinex/quotes_SOLUSD_20250915
["timestamp","ask_amount","ask_price","bid_price","bid_amount"]
[1757902590977,0.03,242.48,242.47,0.94413899]
[1757902591158,0.03,242.48,242.47,32.98413899]
[1757902591360,0.03,242.48,242.47,39.43169718]
[1757902595957,1e-08,242.5,242.47,49.74225106]
[1757902596267,1e-08,242.5,242.49,0.94413899]
[1757902596573,1e-08,242.5,242.49,32.96413899]
[1757902596867,1e-08,242.5,242.49,33.63413899]
[1757902597570,1e-08,242.5,242.49,32.69]
[1757902597771,1e-08,242.5,242.49,33.63413899]
[1757902597965,1e-08,242.5,242.49,37.75802038]
[1757902599770,1e-08,242.5,242.49,39.41122036]
[1757902599958,0.67000001,242.5,242.49,37.79708137]
[1757902600278,0.67000001,242.5,242.49,38.74122036]
[1757902601076,0.67000001,242.5,242.49,5.77708137]
[1757902601255,0.67000001,242.5,242.49,37.79708137]
[1757902602375,0.67000001,242.5,242.49,5.77708137]
[1757902602679,0.67000001,242.5,242.49,37.79708137]
[1757902602854,0.67000001,242.5,242.49,1.65319998]
[1757902603059,0.67000001,242.5,242.49,33.67319998]
[1757902605379,0.67000001,242.5,242.49,33.65319998]
[1757902605881,0.67000001,242.5,242.49,1.65319998]
[1757902606078,26.67000001,242.5,242.49,33.65319998]
[1757902606557,0.67000001,242.5,242.49,37.77708137]
[1757902607776,0.67000001,242.5,242.49,33.65319998]
[1757902608380,0.67000001,242.5,242.49,37.77708137]
[1757902609660,0.67000001,242.5,242.49,33.65319998]
[1757902610469,26.67000001,242.5,242.49,33.65319998]
[1757902610867,0.67000001,242.5,242.49,37.77708137]
[1757902612231,0.67000001,242.5,242.49,33.65319998]
[1757902612667,0.67000001,242.5,242.46,0.06]
[1757902612668,32.26559421,242.5,242.46,0.06]
[1757902612875,27.47188286,242.49,242.47,32.0]
[1757902613069,0.67,242.48,242.47,32.0]
[1757902613687,26.0,242.49,242.47,32.0]
[1757902614188,26.0,242.49,242.48,16.52715224]
[1757902614560,26.67,242.49,242.48,16.52715224]
[1757902615396,26.67,242.49,242.48,4.12405146]
[1757902615893,26.0,242.49,242.48,4.12405146]
[1757902616188,26.69,242.49,242.48,4.12405146]
[1757902616890,26.0,242.49,242.48,4.12405146]
[1757902617071,26.0,242.49,242.48,16.52715224]
[1757902617490,1e-08,242.5,242.48,16.52715224]
[1757902617671,26.00000001,242.5,242.49,32.0]
[1757902618291,26.00000001,242.5,242.49,36.12388139]
[1757902619172,26.00000001,242.5,242.49,36.80388139]
[1757902620078,26.00000001,242.5,242.49,49.20646939]
[1757902620788,26.00000001,242.5,242.49,36.12388139]
[1757902621291,1e-08,242.5,242.49,36.12388139]
[1757902621584,1e-08,242.5,242.49,48.52595667]
[1757902621796,1e-08,242.5,242.49,49.20595667]
[1757902623601,1e-08,242.5,242.49,48.52595667]
[1757902624892,1e-08,242.5,242.49,12.40207528]
[1757902625192,2.16188287,242.5,242.47,0.06]
[1757902625398,1.47188286,242.48,242.47,0.06]
[1757902625570,5.59593432,242.48,242.47,0.06]
[1757902625769,8.36641312,242.48,242.47,0.06]
[1757902625970,9.05641312,242.48,242.47,0.06]
[1757902626173,22.65200713,242.48,242.47,0.06]
[1757902626389,27.51571734,242.48,242.47,0.06]
[1757902631490,39.59559401,242.45,242.44,0.06]
[1757902631789,85.04087939,242.45,242.44,0.06]
[1757902632115,82.24420723,242.45,242.44,0.06]
[1757902632323,50.24420723,242.45,242.44,0.06]
[1757902632497,31.85405146,242.45,242.44,0.06]
[1757902632801,4.24236166,242.45,242.44,0.06]
[1757902632980,30.91236166,242.45,242.44,0.06]
[1757902634291,30.24236166,242.45,242.44,0.06]
[1757902635504,28.7704788,242.45,242.44,0.06]
[1757902635710,30.24236166,242.45,242.44,0.06]
[1757902636809,4.91236166,242.45,242.44,0.06]
[1757902636998,3.4404788,242.45,242.44,0.06]
[1757902637201,27.47188286,242.45,242.44,0.06]
[1757902637503,30.24236166,242.45,242.44,0.06]
[1757902637811,48.63251743,242.45,242.44,0.06]
[1757902638104,22.63251743,242.45,242.44,0.06]
[1757902638506,48.63251743,242.45,242.44,0.06]
[1757902638707,22.63251743,242.45,242.44,0.06]
[1757902641312,59.49706201,242.45,242.44,0.06]
[1757902641490,62.96120348,242.45,242.44,0.06]
[1757902642293,88.96120348,242.45,242.44,0.06]
[1757902642492,62.96120348,242.45,242.44,0.06]
[1757902646003,61.48932062,242.45,242.44,0.06]
[1757902646210,62.96120348,242.45,242.44,0.06]
[1757902646712,59.49706201,242.45,242.44,0.06]
[1757902651429,58.82706201,242.45,242.44,0.06]
[1757902655415,26.0,242.4,242.39,0.06]
[1757902655611,56.17438311,242.4,242.39,0.06]
[1757902655807,66.01556018,242.4,242.39,0.06]
[1757902656524,66.01613434,242.4,242.39,0.06]
[1757902657219,26.0,242.37,242.33,0.68]
[1757902657420,1.47188286,242.34,242.33,0.68]
[1757902657621,26.0,242.3,242.25,4.12788624]
[1757902657812,1.47188286,242.29,242.25,4.12788624]
[1757902658328,26.0,242.3,242.26,0.68]
[1757902658622,1.47188286,242.27,242.26,0.68]
[1757902658830,1.47188286,242.27,242.23,0.2]
[1757902659130,1.47188286,242.24,242.23,0.2]
[1757902659310,27.47188286,242.24,242.23,0.2]
[1757902659906,27.47188286,242.24,242.23,0.92]
[1757902660103,1.47188286,242.24,242.23,0.92]
[1757902662515,41.06747687,242.24,242.23,0.92]
[1757902662726,39.59559401,242.24,242.23,0.92]
[1757902663109,15.06747687,242.24,242.23,0.92]
[1757902664310,15.06747687,242.24,242.23,0.2]
[1757902664311,41.06747687,242.24,242.23,0.2]
[1757902664508,41.06747687,242.24,242.23,0.92]
[1757902666128,15.06747687,242.24,242.23,0.92]
[1757902666510,41.06747687,242.24,242.23,0.92]
[1757902666920,15.06747687,242.24,242.23,0.92]
[1757902667230,41.06747687,242.24,242.23,0.92]
[1757902667415,15.06747687,242.24,242.23,0.92]
[1757902667608,15.06747687,242.24,242.23,0.2]
[1757902667609,41.06747687,242.24,242.23,0.2]
[1757902667810,15.73747687,242.24,242.23,0.2]
[1757902668032,18.50172538,242.24,242.23,0.2]
[1757902668222,44.50172538,242.24,242.23,0.2]
[1757902668537,50.50172538,242.24,242.23,0.2]
[1757902668921,54.62986276,242.24,242.23,0.2]
[1757902669121,53.1579799,242.24,242.23,0.2]
[1757902669430,54.62986276,242.24,242.23,0.2]
[1757902669929,54.1026698,242.24,242.23,0.2]
[1757902673811,80.1226698,242.24,242.23,0.2]
[1757902674016,53.4526698,242.24,242.23,0.2]
[1757902674619,50.68842129,242.24,242.23,0.2]
[1757902677639,51.37842129,242.24,242.23,0.2]
[1757902678048,56.2421315,242.24,242.23,0.2]
[1757902678223,56.2421315,242.24,242.21,0.2]
[1757902678430,40.54028391,242.22,242.21,0.2]
[1757902678636,46.54028391,242.22,242.21,0.2]
[1757902678837,47.23028391,242.22,242.21,0.2]
[1757902680138,51.35876215,242.22,242.21,0.2]
[1757902680349,19.35876215,242.22,242.21,0.2]
[1757902680551,51.37876215,242.22,242.21,0.2]
[1757902680859,55.91537188,242.22,242.21,0.2]
[1757902681437,60.94113641,242.22,242.21,0.2]
[1757902682027,28.92113641,242.22,242.21,0.2]
[1757902682434,60.94113641,242.22,242.21,0.2]
[1757902682645,13.59559401,242.21,242.19,0.2]
[1757902682860,50.33904351,242.2,242.19,0.2]
[1757902683050,13.59559401,242.19,242.18,0.06]
[1757902683250,21.07520887,242.19,242.18,0.06]
[1757902683440,20.90533278,242.19,242.18,0.06]
[1757902683755,17.12657318,242.19,242.18,0.06]
[1757902684053,14.54028391,242.19,242.18,0.74]
[1757902684259,18.66927354,242.19,242.18,0.06]
[1757902685065,14.54028391,242.19,242.18,0.74]
[1757902685432,18.66927354,242.19,242.18,0.74]
[1757902685965,39.33381872,242.2,242.18,0.74]
[1757902686254,14.54028391,242.19,242.18,0.74]
[1757902686453,14.54028391,242.19,242.18,0.06]
[1757902687158,14.54028391,242.19,242.18,0.74]
[1757902689634,39.59559401,242.19,242.18,0.74]
[1757902690340,26.0,242.19,242.18,4.86916012]
[1757902693158,26.0,242.19,242.18,0.74]
[1757902694457,26.0,242.19,242.18,4.86916012]
[1757902696257,13.59559401,242.22,242.18,4.86916012]
[1757902696553,13.59559401,242.22,242.19,0.72]
[1757902697048,13.59559401,242.22,242.2,4.12881915]
[1757902697354,13.59559401,242.22,242.21,0.72]
[1757902698133,14.54028391,242.22,242.19,0.72]
[1757902698340,146.09559401,242.22,242.18,4.1891414]
[1757902698568,0.9446899,242.21,242.19,0.72]
[1757902698781,132.5,242.22,242.19,0.72]
[1757902699267,132.5,242.22,242.2,4.12881915]
[1757902699453,132.5,242.22,242.21,0.72]
[1757902701454,132.5,242.22,242.21,4.84864869]
[1757902701850,26.0,242.23,242.21,4.84864869]
[1757902702052,26.0,242.23,242.22,0.72]
[1757902703262,29.72376226,242.23,242.2,0.72]
[1757902703557,26.9446899,242.21,242.18,4.90915168]
[1757902703777,0.9446899,242.19,242.18,0.06]
[1757902704675,17.32050645,242.19,242.18,0.06]
[1757902704864,18.01050645,242.19,242.18,0.06]
[1757902705779,17.32050645,242.19,242.18,0.06]
[1757902706294,22.13949608,242.19,242.18,0.06]
[1757902707971,18.01050645,242.19,242.18,0.06]
[1757902708169,17.32050645,242.19,242.18,0.06]
[1757902709966,18.01050645,242.19,242.18,0.06]
[1757902710163,22.87421666,242.19,242.18,0.06]
[1757902710373,27.89998119,242.19,242.18,0.06]
[1757902710568,27.20998119,242.19,242.18,0.06]
[1757902710770,16.37581655,242.19,242.18,0.06]
[1757902710968,17.32050645,242.19,242.18,0.06]
[1757902712585,43.32050645,242.19,242.18,0.06]
[1757902712881,42.37581655,242.19,242.18,0.78]
[1757902713086,28.78022254,242.19,242.18,0.78]
[1757902714081,2.78022254,242.19,242.18,0.78]
[1757902714393,2.78022254,242.19,242.18,1.7246899]
[1757902714590,26.0,242.2,242.19,4.12898963]
[1757902714788,26.0,242.2,242.19,5.79367953]
[1757902714970,13.62559401,242.25,242.19,16.11615362]
[1757902715174,2.78126907,242.24,242.2,1.6646899]
[1757902715367,2.78126907,242.23,242.21,4.84864869]
[1757902715695,13.62559401,242.25,242.22,0.72]
[1757902715878,2.7807005,242.24,242.22,0.72]
[1757902716068,2.7807005,242.23,242.21,4.12864869]
[1757902716264,13.62559401,242.25,242.21,4.12864869]
[1757902716475,2.7802025,242.24,242.19,15.39615362]
[1757902716676,2.7802025,242.23,242.2,0.72]
[1757902716876,13.62559401,242.25,242.2,1.6646899]
[1757902717079,2.78020265,242.24,242.21,0.72]
[1757902717295,2.78020265,242.23,242.21,0.72]
[1757902717490,0.03,242.25,242.21,0.72]
[1757902717698,2.77973516,242.24,242.21,1.6646899]
[1757902717999,0.03,242.25,242.22,0.72]
[1757902718174,2.77973502,242.24,242.22,0.72]
[1757902718374,0.03,242.25,242.21,4.12864869]
[1757902718575,2.7792971,242.24,242.23,0.72]
[1757902718878,132.5,242.38,242.23,1.6646899]
[1757902719089,132.5,242.38,242.33,0.9446899]
[1757902719294,26.0,242.35,242.34,0.69]
[1757902719583,26.0,242.35,242.33,0.9446899]
[1757902719801,0.03,242.39,242.34,0.9446899]
[1757902720093,0.03,242.39,242.35,0.9446899]
[1757902720304,0.03,242.39,242.35,2.59932599]
[1757902720487,26.03,242.39,242.36,4.81609341]
[1757902720694,26.03,242.39,242.37,0.69]
[1757902720990,26.03,242.39,242.38,0.69]
[1757902721191,0.03,242.39,242.38,0.69]
[1757902722301,0.03,242.39,242.38,4.81575294]
[1757902724473,0.03,242.39,242.38,0.69]
[1757902728121,0.03,242.39,242.38,11.00531495]
[1757902728714,0.03,242.39,242.38,11.95000485]
[1757902729783,0.03,242.39,242.38,12.47775927]
[1757902732484,0.03,242.39,242.38,44.43775927]
[1757902734102,0.03,242.39,242.38,12.47775927]
[1757902734301,0.03,242.39,242.38,44.43775927]
[1757902735506,0.03,242.39,242.38,12.47775927]
[1757902735807,0.03,242.39,242.38,44.43775927]
[1757902741312,0.03,242.39,242.38,48.56351221]
[1757902743008,0.03,242.39,242.38,47.09106789]
[1757902743512,0.03,242.39,242.38,48.56351221]
[1757902743714,1e-08,242.42,242.38,60.76291419]
[1757902743897,1e-08,242.42,242.41,1.47244432]
[1757902744095,1e-08,242.42,242.41,33.43244432]
[1757902744401,1e-08,242.42,242.41,35.75619109]
[1757902744792,1e-08,242.42,242.41,39.88143344]
[1757902748301,1e-08,242.42,242.41,7.92143344]
[1757902748499,1e-08,242.42,242.41,39.88143344]
[1757902749304,1e-08,242.42,242.41,7.92143344]
[1757902749505,1e-08,242.42,242.41,39.88143344]
[1757902749701,1e-08,242.42,242.41,5.77898912]
[1757902749903,1e-08,242.42,242.41,39.19143344]
[1757902750107,1e-08,242.42,242.41,39.91143344]
[1757902751515,0.03,242.49,242.45,26.0]
[1757902751718,0.03,242.49,242.48,1.47244432]
[1757902752016,0.03,242.49,242.46,0.72]
[1757902752315,0.03,242.49,242.48,3.1258493]
[1757902753508,0.03,242.49,242.48,7.24990076]
[1757902753911,0.03,242.49,242.48,7.96990076]
[1757902755225,1.47244432,242.6,242.48,7.96990076]
[1757902755226,0.69,242.6,242.52,1.47244432]
[1757902755530,0.69,242.6,242.54,1.47244432]
[1757902755729,0.69,242.6,242.54,5.59547557]
[1757902756116,26.1,242.64,242.54,6.31547557]
[1757902756322,0.79,242.64,242.54,6.31547557]
[1757902756530,0.79,242.64,242.54,18.71088926]
[1757902756836,0.69,242.63,242.54,18.71088926]
[1757902757414,0.69,242.63,242.54,31.17902968]
[1757902758337,0.1,242.64,242.55,13.59559401]
[1757902758537,0.1,242.64,242.63,1.47244432]
[1757902758711,0.1,242.64,242.63,33.81244432]
[1757902759442,0.1,242.64,242.63,35.46496131]
[1757902760738,0.1,242.64,242.63,39.58646318]
[1757902762620,0.1,242.64,242.63,40.30646318]
[1757902762839,0.1,242.64,242.63,41.7789075]
[1757902763824,1e-08,242.64,242.63,55.37450151]
[1757902764028,1e-08,242.67,242.64,13.59559401]
[1757902764228,1e-08,242.67,242.66,1.47244432]
[1757902764430,1e-08,242.67,242.66,2.19244432]
[1757902764848,1e-08,242.67,242.66,6.31343665]
[1757902765051,1e-08,242.67,242.66,4.12099233]
[1757902765253,0.69000001,242.67,242.66,37.97343665]
[1757902765749,0.69000001,242.67,242.66,4.12099233]
[1757902765938,0.69000001,242.67,242.66,37.99343665]
[1757902766128,0.69000001,242.67,242.66,39.64581711]
[1757902766824,1e-08,242.67,242.66,39.64581711]
[1757902767028,1e-08,242.67,242.66,40.36581711]
[1757902769829,1e-08,242.67,242.66,53.96141112]
[1757902772038,1e-08,242.67,242.66,21.56141112]
[1757902772239,1e-08,242.67,242.66,53.94141112]
[1757902773447,1e-08,242.67,242.66,21.56141112]
[1757902773645,1e-08,242.67,242.66,53.92141112]
[1757902777858,1e-08,242.67,242.66,21.56141112]
[1757902778028,1e-08,242.67,242.66,53.88141112]
[1757902790173,0.03,242.72,242.67,13.59559401]
[1757902790473,0.03,242.72,242.71,1.47244432]
[1757902790657,0.03,242.72,242.71,33.69244432]
[1757902790858,0.03,242.72,242.71,50.20032384]
[1757902791781,0.03,242.72,242.71,49.6676682]
[1757902797693,0.03,242.72,242.71,48.72787952]
[1757902797879,0.03,242.72,242.71,49.6676682]
[1757902798899,0.03,242.72,242.71,17.4476682]
[1757902799101,0.03,242.72,242.71,49.5876682]
[1757902800470,0.03,242.72,242.71,17.4476682]
[1757902800702,0.03,242.72,242.71,49.5876682]
[1757902801603,0.03,242.72,242.71,49.5676682]
[1757902801778,0.03,242.72,242.71,37.17993206]
[1757902801979,0.03,242.72,242.71,49.56869133]
[1757902803285,0.03,242.72,242.71,17.44869133]
[1757902803486,0.7,242.72,242.71,37.17993206]
[1757902804395,0.03,242.72,242.71,44.07402035]
[1757902804599,0.7,242.72,242.71,44.07402035]
[1757902805712,0.7,242.72,242.66,0.06]
[1757902805898,0.93978868,242.71,242.67,32.14]
[1757902806073,0.67,242.7,242.67,32.14]
[1757902806278,0.67,242.69,242.67,32.14]
[1757902806480,0.67,242.68,242.67,32.14]
[1757902807084,0.67,242.68,242.67,36.26082251]
[1757902807903,0.67,242.68,242.66,0.06]
[1757902808519,26.96978868,242.72,242.67,32.14]
[1757902808821,2.77804878,242.71,242.67,33.07978868]
[1757902809124,0.03,242.72,242.67,33.07978868]
[1757902809125,0.68,242.7,242.69,0.93978868]
[1757902809322,0.68,242.7,242.69,33.09978868]
[1757902809490,0.03,242.72,242.69,33.09978868]
[1757902809691,0.68,242.71,242.69,33.09978868]
[1757902810192,0.68,242.7,242.66,0.06]
[1757902810389,26.03,242.72,242.66,0.06]
[1757902810390,0.03,242.72,242.67,33.09978868]
[1757902810596,0.68,242.71,242.68,0.93978868]
[1757902810918,0.03,242.72,242.69,32.16]
[1757902810919,0.68,242.7,242.69,32.16]
[1757902811093,0.03,242.72,242.69,37.2202716]
[1757902811296,0.03,242.72,242.71,0.93978868]
[1757902811489,0.03,242.72,242.71,33.13978868]
[1757902812201,0.03,242.72,242.71,37.25993206]
[1757902812404,0.03,242.72,242.71,37.96993206]
[1757902816497,0.03,242.72,242.71,37.03014338]
[1757902816694,0.03,242.72,242.71,39.62163022]
[1757902819995,0.03,242.77,242.72,20.0]
[1757902820195,0.03,242.77,242.76,0.93978868]
[1757902820401,0.03,242.77,242.76,37.21908345]
[1757902820621,0.03,242.77,242.76,39.76584389]
[1757902820824,0.03,242.77,242.76,40.70563257]
[1757902821727,0.03,242.77,242.76,39.99563257]
[1757902822030,0.03,242.77,242.76,40.70563257]
[1757902823437,0.03,242.77,242.76,6.89584389]
[1757902823638,0.03,242.77,242.76,39.97563257]
[1757902823822,0.03,242.77,242.76,6.89584389]
[1757902824136,0.03,242.77,242.76,37.21908345]
[1757902824923,0.03,242.77,242.76,37.92908345]
[1757902825532,0.03,242.77,242.76,40.70162933]
[1757902827601,0.03,242.77,242.76,39.99162933]
[1757902827805,0.03,242.77,242.76,39.97162933]
[1757902828006,0.03,242.77,242.76,6.89184065]
[1757902828237,0.03,242.77,242.76,39.97162933]
[1757902830632,0.03,242.77,242.76,40.68162933]
[1757902831435,0.03,242.77,242.76,39.97162933]
[1757902832216,0.03,242.77,242.76,40.68162933]
[1757902832422,0.03,242.77,242.76,39.97162933]
[1757902838517,0.71,242.77,242.76,2.77254588]
[1757902838838,0.71,242.77,242.76,34.83254588]
[1757902839629,0.71,242.77,242.76,32.06]
[1757902839938,0.71,242.77,242.76,36.17929477]
[1757902842138,0.71,242.77,242.76,32.06]
[1757902842515,1.64978868,242.77,242.71,0.06]
[1757902842721,1.64978868,242.77,242.72,32.06]
[1757902843029,0.72,242.76,242.72,32.06]
[1757902843230,0.96978868,242.77,242.72,32.06]
[1757902843231,0.72,242.75,242.72,32.06]
[1757902843418,0.72,242.74,242.72,32.06]
[1757902843620,0.72,242.73,242.72,32.06]
[1757902844845,0.72,242.73,242.72,36.17997363]
[1757902845026,0.72,242.73,242.72,32.06]
[1757902845542,0.72,242.73,242.72,36.17997363]
[1757902847151,0.72,242.73,242.72,32.06]
[1757902848432,0.72,242.73,242.72,36.17997363]
[1757902849133,0.72,242.73,242.72,36.23997363]
[1757902849833,1.65978868,242.73,242.72,0.06]
[1757902850044,0.72,242.73,242.72,4.17997363]
[1757902851249,0.72,242.73,242.72,0.06]
[1757902851449,1.65978868,242.73,242.72,0.06]
[1757902851664,19.37518658,242.73,242.72,0.06]
[1757902851955,22.67556867,242.73,242.72,0.06]
[1757902853543,155.17556867,242.73,242.72,0.06]
[1757902853766,48.67556867,242.73,242.72,0.06]
[1757902854256,54.73556867,242.73,242.72,0.06]
[1757902854427,22.67556867,242.73,242.72,0.06]
[1757902854629,21.20566717,242.73,242.72,0.06]
[1757902854959,22.67556867,242.73,242.72,0.06]
[1757902855334,0.03,242.77,242.72,4.86997363]
[1757902855534,0.03,242.77,242.74,1.4699015]
[1757902855939,0.03,242.77,242.75,0.69]
[1757902856552,0.03,242.77,242.72,16.13167407]
[1757902856762,0.03,242.77,242.72,16.82167407]
[1757902856947,0.71,242.76,242.72,4.17997363]
[1757902857258,1.4999015,242.77,242.72,0.06]
[1757902857466,28.1799015,242.76,242.72,0.06]
[1757902857959,0.71,242.75,242.72,0.06]
[1757902858167,1.4699015,242.73,242.72,0.06]
[1757902858469,1.4699015,242.74,242.72,0.06]
[1757902859157,1.4699015,242.74,242.72,4.1799659]
[1757902859361,1.4699015,242.74,242.72,0.06]
[1757902859953,27.4699015,242.76,242.72,4.17989657]
[1757902860258,27.4699015,242.76,242.73,0.69]
[1757902860464,1.4699015,242.76,242.74,0.69]
[1757902860839,0.03,242.77,242.74,0.69]
[1757902861159,0.03,242.77,242.72,4.17989657]
[1757902861160,0.03,242.77,242.72,4.86989657]
[1757902861361,0.03,242.77,242.73,0.69]
[1757902861569,0.03,242.77,242.74,4.11963417]
[1757902862247,2.1799015,242.76,242.72,0.06]
[1757902862564,1.4699015,242.75,242.72,0.06]
[1757902862743,1.4699015,242.75,242.72,4.17995175]
[1757902863146,1.4699015,242.75,242.72,4.86995175]
[1757902864158,1.4699015,242.75,242.72,4.17995175]
[1757902864363,1.4699015,242.73,242.72,0.06]
[1757902864556,26.0,242.76,242.72,0.06]
[1757902864864,1.4699015,242.74,242.72,0.06]
[1757902865272,2.1799015,242.74,242.72,0.06]
[1757902865960,14.30559401,242.73,242.72,0.06]
[1757902866852,17.07181657,242.73,242.72,0.06]
[1757902870978,13.59559401,242.72,242.71,0.06]
[1757902871145,13.59559401,242.69,242.68,0.06]
[1757902871350,17.83171807,242.69,242.67,0.06]
[1757902871575,54.30552678,242.68,242.67,0.06]
[1757902871744,58.42617949,242.68,242.67,0.06]
[1757902872362,13.59559401,242.67,242.55,0.69]
[1757902872595,17.83171807,242.67,242.55,0.69]
[1757902872893,39.59559401,242.65,242.55,0.69]
[1757902873102,13.59559401,242.64,242.54,0.06]
[1757902873278,14.31559401,242.64,242.54,0.06]
[1757902873599,47.42549551,242.63,242.54,0.06]
[1757902873911,54.31321994,242.63,242.54,0.06]
[1757902874092,55.03321994,242.63,242.54,0.06]
[1757902874675,39.59559401,242.55,242.54,0.06]
[1757902874881,27.4699015,242.55,242.54,0.06]
[1757902875082,27.4699015,242.55,242.54,0.75]
[1757902875689,27.4699015,242.55,242.54,0.06]
[1757902877499,15.06549551,242.55,242.54,0.06]
[1757902878175,15.78549551,242.55,242.54,0.06]
[1757902878380,15.06549551,242.55,242.54,0.06]
[1757902878791,15.78549551,242.55,242.54,0.06]
[1757902879187,17.25539701,242.55,242.54,0.06]
[1757902879380,22.11787054,242.55,242.54,0.06]
[1757902881297,26.0,242.51,242.47,0.2]
[1757902881505,41.06549551,242.48,242.47,0.2]
[1757902881886,41.78549551,242.48,242.47,0.2]
[1757902883090,45.90954697,242.48,242.47,0.2]
[1757902884690,78.26954697,242.48,242.47,0.2]
[1757902884893,45.90954697,242.48,242.47,0.2]
[1757902885102,78.26954697,242.48,242.47,0.2]
[1757902886793,45.90954697,242.48,242.47,0.2]
[1757902887195,78.24954697,242.48,242.47,0.2]
[1757902888701,26.0,242.45,242.44,0.06]
[1757902889005,73.38549551,242.45,242.44,0.06]
[1757902889198,74.10549551,242.45,242.44,0.06]
[1757902890295,41.78549551,242.45,242.44,0.06]
[1757902890479,74.10549551,242.45,242.44,0.06]
[1757902890682,82.28792258,242.45,242.44,0.06]
[1757902891901,92.59932699,242.45,242.42,0.06]
[1757902892102,15.06549551,242.43,242.42,0.06]
[1757902892310,48.85539701,242.43,242.42,0.06]
[1757902892491,53.63326232,242.43,242.42,0.06]
[1757902892808,57.75816435,242.43,242.42,0.06]
[1757902894195,54.81836135,242.43,242.42,0.06]
[1757902894508,57.75816435,242.43,242.42,0.06]
[1757902894895,56.28826285,242.43,242.42,0.06]
[1757902895805,55.52826285,242.43,242.42,0.06]
[1757902897608,133.9699015,242.47,242.42,4.84502025]
[1757902897791,133.9699015,242.47,242.43,0.66]
[1757902898308,26.0,242.44,242.43,0.66]
[1757902900214,1.4699015,242.46,242.43,0.66]
[1757902900383,26.0,242.44,242.43,0.66]
[1757902901012,26.0,242.44,242.43,4.78490203]
[1757902902314,26.0,242.44,242.43,0.66]
[1757902904016,41.06549551,242.44,242.42,0.06]
[1757902904208,1.4699015,242.43,242.42,0.06]
[1757902904724,15.06549551,242.43,242.42,0.06]
[1757902904932,15.73549551,242.43,242.42,0.06]
[1757902905096,48.09549551,242.43,242.42,0.06]
[1757902906422,52.22039754,242.43,242.42,0.06]
[1757902906802,19.19039754,242.43,242.42,0.06]
[1757902907011,51.53039754,242.43,242.42,0.06]
[1757902907801,13.59559401,242.42,242.41,0.2]
[1757902907996,21.39910722,242.42,242.41,0.2]
[1757902908201,22.06910722,242.42,242.41,0.2]
[1757902908724,26.1941794,242.42,242.41,0.2]
[1757902908930,46.1941794,242.42,242.41,0.2]
[1757902909123,1.4699015,242.3,242.29,0.2]
[1757902909303,1.4699015,242.3,242.29,0.91]
[1757902909919,4.7083345,242.3,242.29,0.91]
[1757902910232,1.4699015,242.3,242.29,0.91]
[1757902911007,29.39127059,242.35,242.29,0.91]
[1757902911209,1.4699015,242.34,242.3,0.71]
[1757902911517,1.4699015,242.33,242.3,4.83711514]
[1757902911719,1.4699015,242.33,242.31,0.71]
[1757902911907,0.94349471,242.33,242.31,0.71]
[1757902912114,0.94349471,242.34,242.31,0.71]
[1757902912409,0.94349471,242.33,242.31,0.71]
[1757902912925,26.0,242.36,242.31,0.71]
[1757902912926,0.94349471,242.34,242.31,0.71]
[1757902913228,0.94349471,242.34,242.31,4.83686577]
[1757902913417,0.94349471,242.34,242.32,0.71]
[1757902915021,26.0,242.35,242.32,0.71]
[1757902915328,0.94349471,242.34,242.33,0.66]
[1757902916616,0.94349471,242.35,242.33,4.78660274]
[1757902916833,26.94349471,242.36,242.34,0.66]
[1757902917017,0.94349471,242.36,242.33,4.12660274]